Workbook

Sheet VSD
B1: Variable Speed Drive - Economic comparison | L1: current version
B2: Cooperators name | F2: Location | L2: =MAX('Revision history'!A2:A195) -> 2013-09-30
BJ5: =LINEST(BJ21:BR21,AY21:BG21,TRUE,TRUE) -> 
B6: Management inputs | G6: Selected or Existing Pump | AI6: Centrifugal
B7: Field size (ac) | C7: System flow rate (gpm) | D7: Gross irrigation requirement (in/yr) | E7: Total seasonal Operating Hours | G7: Pump RPM | H7: Manufacture | I7: Type | J7: Model | AI7: Turbine
AI8: Submersible
G9: Base pump curve (60 Hz) | AI9: Impellor
G10: Point | H10: Flow (gpm) | I10: Head (ft) | J10: Efficiency (%) | AY10: MULTIPOINT CALCULATOR
E11: =IF(C11<>"",B11*D11/(12*60*C11/(7.481*43560)),"") ->  | G11: 1 | H11: 460 | I11: 368 | J11: 74
G12: 2 | H12: 582 | I12: 350 | J12: 78 | AY12: ENTER THE DESIRED SYSTEM CURVE HEADS IN
G13: 3 | H13: 621 | I13: 340 | J13: 79 | AY13: FEET IN CELLS V14 - AC14.
B14: Motor assumptions | D14: VFD | E14: Costs | G14: 4 | H14: 700 | I14: 320 | J14: 80.5 | AS14: AFFINITY LAW CALCULATOR
B15: Existing Motor Efficiency (%) | C15: New Motor Efficiency (%) | D15: VFD Efficiency (%) | E15: Average Power Cost per kWh ($) | F15: Installed Cost of motor, VFD or VFD and motor ($) | G15: 5 | H15: 781 | I15: 280 | J15: 80
G16: 6 | H16: 830 | I16: 256 | J16: 78 | AG16: 0 | AH16: 0 | AS16: ENTER RPM IN CELL B22 | AY16: ENTER UP TO EIGHT 60 HERTZ FLOWS IN CELLS N22 - U22 STARTING WITH 0
G17: 7 | H17: 880 | I17: 232 | J17: 75 | AY17: ENTER CORRESPONDING HEADS IN IN FEET IN CELLS V22 - AC22
G18: 8 | H18: 945 | I18: 200 | J18: 69
G19: 9 | AR19: HERTZ | AS19: RPM | AT19: D Q | AU19: D H | AV19: D HP | AX19: HZ | AY19: Q1 | AZ19: Q2 | BA19: Q3 | BB19: Q4 | BC19: Q5 | BD19: Q6 | BE19: Q7 | BF19: Q8 | BG19: Q9 | BH19: Q10 | BI19: Q11 | BJ19: H1 | BK19: H2 | BL19: H3 | BM19: H4 | BN19: H5 | BO19: H6 | BP19: H7 | BQ19: H8 | BR19: H9 | BS19: H10 | BT19: H11
G20: 10
G21: 11 | AQ21: =IF(H24<>"",ROUND(AR21,1)&" HZ "&AS21&" RPM","") -> 60 HZ 0 RPM | AR21: 60 | AS21: =$G$8 -> 0 | AT21: =AR21/60 -> 1 | AU21: 1 | AV21: 1 | AX21: 60 | AY21: =IF($H11<>"",$H11,"") -> 460 | AZ21: =IF($H12<>"",$H12,"") -> 582 | BA21: =IF($H13<>"",$H13,"") -> 621 | BB21: =IF($H14<>"",$H14,"") -> 700 | BC21: =IF($H15<>"",$H15,"") -> 781 | BD21: =IF($H16<>"",$H16,"") -> 830 | BE21: =IF($H17<>"",$H17,"") -> 880 | BF21: =IF(H18<>"",H18,"") -> 945 | BG21: =IF(H19<>"",H19,"") ->  | BH21: =IF(H20<>"",H20,"") ->  | BI21: =IF(H21<>"",H21,"") ->  | BJ21: =IF($I11<>"",$I11,"") -> 368 | BK21: =IF($I12<>"",$I12,"") -> 350 | BL21: =IF($I13<>"",$I13,"") -> 340 | BM21: =IF($I14<>"",$I14,"") -> 320 | BN21: =IF($I15<>"",$I15,"") -> 280 | BO21: =IF($I16<>"",$I16,"") -> 256 | BP21: =IF($I17<>"",$I17,"") -> 232 | BQ21: =IF(I18<>"",I18,"") -> 200 | BR21: =IF(I19<>"",I19,"") ->  | BS21: =IF(I20<>"",I20,"") ->  | BT21: =IF(I21<"",I21,"") ->  | BU21: =IF(AY21<>"",11-COUNTBLANK(AY21:BI21),"") -> 8
AQ22: =IF(H27<>"",ROUND(AS22,0)&" RPM "&"with "&F27&"gpm "&"at "&G27&" ft","") ->  | AR22: =H27 -> 0 | AS22: =IF(AR22<>"",(AR22/60)*AS$21,"") -> 0 | AT22: =IF(AR22<>"",AR22/60,"") -> 0 | AU22: =IF(AR22<>"",AT22*AT22,"") -> 0 | AV22: =AT22*AU22 -> 0 | AY22: =IF($AR22<>"",AY$21*$AT22,"") -> 0 | AZ22: =IF(AND(AZ21<>"",$AR22<>""),AZ$21*$AT22,"") -> 0 | BA22: 0 | BB22: 0 | BC22: 0 | BD22: 0 | BE22: 0 | BF22: 0 | BJ22: =IF(AND(BJ$21<>"",$AR22<>""),BJ$21*$AU22,"") -> 0 | BK22: 0 | BL22: 0 | BM22: 0 | BN22: 0 | BO22: 0 | BP22: 0 | BQ22: 0
B23: Operating points/ system curve without VFD | F23: =IF(AND($C$19=0,D19<>0),"Alternative operating points with VFD",IF(AND(C19<>0,D19<>0),"Alternative operating points with VFD and new motor",IF(AND(C19<>0,D19=0),"Alternative operating points with new motor","Operating points/System curve with VFD"))) -> Operating points/System curve with VFD | AR23: 0 | AS23: 0 | AT23: 0 | AU23: 0 | AV23: 0 | AY23: 0 | AZ23: 0 | BA23: 0 | BB23: 0 | BC23: 0 | BD23: 0 | BE23: 0 | BF23: 0 | BJ23: 0 | BK23: 0 | BL23: 0 | BM23: 0 | BN23: 0 | BO23: 0 | BP23: 0 | BQ23: 0
B24: Point | C24: Flow (gpm) | D24: Head (ft) | E24: Pump Efficiency (%) | F24: Flow (gpm) | G24: Head (ft) | H24: VFD freq (Hz) | I24: Pump Efficiency (%) | AR24: 0 | AS24: 0 | AT24: 0 | AU24: 0 | AV24: 0 | AY24: 0 | AZ24: 0 | BA24: 0 | BB24: 0 | BC24: 0 | BD24: 0 | BE24: 0 | BF24: 0 | BJ24: 0 | BK24: 0 | BL24: 0 | BM24: 0 | BN24: 0 | BO24: 0 | BP24: 0 | BQ24: 0
AR25: 0 | AS25: 0 | AT25: 0 | AU25: 0 | AV25: 0 | AY25: 0 | AZ25: 0 | BA25: 0 | BB25: 0 | BC25: 0 | BD25: 0 | BE25: 0 | BF25: 0 | BJ25: 0 | BK25: 0 | BL25: 0 | BM25: 0 | BN25: 0 | BO25: 0 | BP25: 0 | BQ25: 0
AR26: 0 | AS26: 0 | AT26: 0 | AU26: 0 | AV26: 0 | AY26: 0 | AZ26: 0 | BA26: 0 | BB26: 0 | BC26: 0 | BD26: 0 | BE26: 0 | BF26: 0 | BJ26: 0 | BK26: 0 | BL26: 0 | BM26: 0 | BN26: 0 | BO26: 0 | BP26: 0 | BQ26: 0
B27: 1 | D27: =IF(C27<>"",INDEX(LINEST(pyA,pxA^{1;2;3}),1,1)*C27^3+INDEX(LINEST(pyA,pxA^{1;2;3}),1,2)*C27^2+INDEX(LINEST(pyA,pxA^{1;2;3}),1,3)*C27+INDEX(LINEST(pyA,pxA^{1;2;3}),1,4),"") ->  | E27: =IF(C27<>"",INDEX(LINEST(eff,pxA^{1;2;3}),1,1)*C27^3+INDEX(LINEST(eff,pxA^{1;2;3}),1,2)*C27^2+INDEX(LINEST(eff,pxA^{1;2;3}),1,3)*C27+INDEX(LINEST(eff,pxA^{1;2;3}),1,4),"") ->  | F27: =C27 -> 0 | I27: =IF(H27<>"",INDEX(LINEST(eff,_px1^{1;2;3}),1,1)*F27^3+INDEX(LINEST(eff,_px1^{1;2;3}),1,2)*F27^2+INDEX(LINEST(eff,_px1^{1;2;3}),1,3)*F27+INDEX(LINEST(eff,_px1^{1;2;3}),1,4),"") ->  | AR27: 0 | AS27: 0 | AT27: 0 | AU27: 0 | AV27: 0 | AY27: 0 | AZ27: 0 | BA27: 0 | BB27: 0 | BC27: 0 | BD27: 0 | BE27: 0 | BF27: 0 | BJ27: 0 | BK27: 0 | BL27: 0 | BM27: 0 | BN27: 0 | BO27: 0 | BP27: 0 | BQ27: 0
B28: 2 | D28: =IF(C28<>"",INDEX(LINEST(pyA,pxA^{1;2;3;4}),1,1)*C28^4+INDEX(LINEST(pyA,pxA^{1;2;3;4}),1,2)*C28^3+INDEX(LINEST(pyA,pxA^{1;2;3;4}),1,3)*C28^2+INDEX(LINEST(pyA,pxA^{1;2;3;4}),1,4)*C28+INDEX(LINEST(pyA,pxA^{1;2;3;4}),1,5),"") ->  | E28: =IF(C28<>"",INDEX(LINEST(eff,pxA^{1;2;3}),1,1)*C28^3+INDEX(LINEST(eff,pxA^{1;2;3}),1,2)*C28^2+INDEX(LINEST(eff,pxA^{1;2;3}),1,3)*C28+INDEX(LINEST(eff,pxA^{1;2;3}),1,4),"") ->  | F28: 0 | I28: =IF(H28<>"",INDEX(LINEST(eff,_px2^{1;2;3}),1,1)*F28^3+INDEX(LINEST(eff,_px2^{1;2;3}),1,2)*F28^2+INDEX(LINEST(eff,_px2^{1;2;3}),1,3)*F28+INDEX(LINEST(eff,_px2^{1;2;3}),1,4),"") ->  | AG28: =H20 -> 0 | AH28: =J20 -> 0 | AP28: Slider | AQ28: =IF(AR28<>"",ROUND(AR28,1)&" HZ "&AS28&" RPM","") -> 43 HZ 0 RPM | AR28: 43 | AS28: =IF(AR28<>"",ROUND((AR28/60)*AS$21,0),"") -> 0 | AT28: =IF(AR28<>"",AR28/60,"") -> 0.7166666667 | AU28: =IF(AR28<>"",AT28*AT28,"") -> 0.5136111111 | AV28: =AT28*AU28 -> 0.368087963 | AY28: =IF($AR28<>"",AY$21*$AT28,"") -> 329.6666667 | AZ28: =IF(AND(AZ27<>"",$AR28<>""),AZ$21*$AT28,"") -> 417.1 | BA28: =IF(AND(BA27<>"",$AR28<>""),BA$21*$AT28,"") -> 445.05 | BB28: =IF(AND(BB27<>"",$AR28<>""),BB$21*$AT28,"") -> 501.6666667 | BC28: =IF(AND(BC27<>"",$AR28<>""),BC$21*$AT28,"") -> 559.7166667 | BD28: =IF(AND(BD27<>"",$AR28<>""),BD$21*$AT28,"") -> 594.8333333 | BE28: =IF(AND(BE27<>"",$AR28<>""),BE$21*$AT28,"") -> 630.6666667 | BF28: =IF(AND(BF27<>"",$AR28<>""),BF$21*$AT28,"") -> 677.25 | BG28: =IF(AND(BG27<>"",$AR28<>""),BG$21*$AT28,"") ->  | BH28: =IF(AND(BH27<>"",$AR28<>""),BH$21*$AT28,"") ->  | BI28: =IF(AND(BI27<>"",$AR28<>""),BI$21*$AT28,"") ->  | BJ28: 189.0088889 | BK28: 179.7638889 | BL28: 174.6277778 | BM28: 164.3555556 | BN28: 143.8111111 | BO28: 131.4844444 | BP28: 119.1577778 | BQ28: 102.7222222
B29: 3 | D29: =IF(C29<>"",INDEX(LINEST(pyA,pxA^{1;2;3;4}),1,1)*C29^4+INDEX(LINEST(pyA,pxA^{1;2;3;4}),1,2)*C29^3+INDEX(LINEST(pyA,pxA^{1;2;3;4}),1,3)*C29^2+INDEX(LINEST(pyA,pxA^{1;2;3;4}),1,4)*C29+INDEX(LINEST(pyA,pxA^{1;2;3;4}),1,5),"") ->  | E29: =IF(C29<>"",INDEX(LINEST(eff,pxA^{1;2;3}),1,1)*C29^3+INDEX(LINEST(eff,pxA^{1;2;3}),1,2)*C29^2+INDEX(LINEST(eff,pxA^{1;2;3}),1,3)*C29+INDEX(LINEST(eff,pxA^{1;2;3}),1,4),"") ->  | F29: 0 | I29: =IF(H29<>"",INDEX(LINEST(eff,_px3^{1;2;3}),1,1)*F29^3+INDEX(LINEST(eff,_px3^{1;2;3}),1,2)*F29^2+INDEX(LINEST(eff,_px3^{1;2;3}),1,3)*F29+INDEX(LINEST(eff,_px3^{1;2;3}),1,4),"") ->  | AG29: =H21 -> 0 | AH29: =J21 -> 0 | AQ29: 60 HZ | AR29: 60 | AS29: 0 | AT29: 1 | AU29: 1 | AV29: 1 | AY29: 460 | AZ29: 582 | BA29: 621 | BB29: 700 | BC29: 781 | BD29: 830 | BE29: 880 | BF29: 945 | BJ29: 368 | BK29: 350 | BL29: 340 | BM29: 320 | BN29: 280 | BO29: 256 | BP29: 232 | BQ29: 200
B30: 4 | D30: =IF(C30<>"",INDEX(LINEST(pyA,pxA^{1;2;3;4}),1,1)*C30^4+INDEX(LINEST(pyA,pxA^{1;2;3;4}),1,2)*C30^3+INDEX(LINEST(pyA,pxA^{1;2;3;4}),1,3)*C30^2+INDEX(LINEST(pyA,pxA^{1;2;3;4}),1,4)*C30+INDEX(LINEST(pyA,pxA^{1;2;3;4}),1,5),"") ->  | E30: =IF(C30<>"",INDEX(LINEST(eff,pxA^{1;2;3}),1,1)*C30^3+INDEX(LINEST(eff,pxA^{1;2;3}),1,2)*C30^2+INDEX(LINEST(eff,pxA^{1;2;3}),1,3)*C30+INDEX(LINEST(eff,pxA^{1;2;3}),1,4),"") ->  | F30: 0 | I30: =IF(H30<>"",INDEX(LINEST(eff,_px4^{1;2;3}),1,1)*F30^3+INDEX(LINEST(eff,_px4^{1;2;3}),1,2)*F30^2+INDEX(LINEST(eff,_px4^{1;2;3}),1,3)*F30+INDEX(LINEST(eff,_px4^{1;2;3}),1,4),"") ->  | AQ30: 55 HZ | AR30: 55 | AS30: 0 | AT30: 0.9166666667 | AU30: 0.8402777778 | AV30: 0.7702546296 | AY30: 421.6666667 | AZ30: 533.5 | BA30: 569.25 | BB30: 641.6666667 | BC30: 715.9166667 | BD30: 760.8333333 | BE30: 806.6666667 | BF30: 866.25 | BJ30: 309.2222222 | BK30: 294.0972222 | BL30: 285.6944444 | BM30: 268.8888889 | BN30: 235.2777778 | BO30: 215.1111111 | BP30: 194.9444444 | BQ30: 168.0555556
B31: 5 | D31: =IF(C31<>"",INDEX(LINEST(pyA,pxA^{1;2;3;4}),1,1)*C31^4+INDEX(LINEST(pyA,pxA^{1;2;3;4}),1,2)*C31^3+INDEX(LINEST(pyA,pxA^{1;2;3;4}),1,3)*C31^2+INDEX(LINEST(pyA,pxA^{1;2;3;4}),1,4)*C31+INDEX(LINEST(pyA,pxA^{1;2;3;4}),1,5),"") ->  | E31: =IF(C31<>"",INDEX(LINEST(eff,pxA^{1;2;3}),1,1)*C31^3+INDEX(LINEST(eff,pxA^{1;2;3}),1,2)*C31^2+INDEX(LINEST(eff,pxA^{1;2;3}),1,3)*C31+INDEX(LINEST(eff,pxA^{1;2;3}),1,4),"") ->  | F31: 0 | I31: =IF(H31<>"",INDEX(LINEST(eff,_px5^{1;2;3}),1,1)*F31^3+INDEX(LINEST(eff,_px5^{1;2;3}),1,2)*F31^2+INDEX(LINEST(eff,_px5^{1;2;3}),1,3)*F31+INDEX(LINEST(eff,_px5^{1;2;3}),1,4),"") ->  | AQ31: 50 HZ | AR31: 50 | AS31: 0 | AT31: 0.8333333333 | AU31: 0.6944444444 | AV31: 0.5787037037 | AY31: 383.3333333 | AZ31: 485 | BA31: 517.5 | BB31: 583.3333333 | BC31: 650.8333333 | BD31: 691.6666667 | BE31: 733.3333333 | BF31: 787.5 | BJ31: 255.5555556 | BK31: 243.0555556 | BL31: 236.1111111 | BM31: 222.2222222 | BN31: 194.4444444 | BO31: 177.7777778 | BP31: 161.1111111 | BQ31: 138.8888889
B32: 6 | D32: =IF(C32<>"",INDEX(LINEST(pyA,pxA^{1;2;3;4}),1,1)*C32^4+INDEX(LINEST(pyA,pxA^{1;2;3;4}),1,2)*C32^3+INDEX(LINEST(pyA,pxA^{1;2;3;4}),1,3)*C32^2+INDEX(LINEST(pyA,pxA^{1;2;3;4}),1,4)*C32+INDEX(LINEST(pyA,pxA^{1;2;3;4}),1,5),"") ->  | E32: =IF(C32<>"",INDEX(LINEST(eff,pxA^{1;2;3}),1,1)*C32^3+INDEX(LINEST(eff,pxA^{1;2;3}),1,2)*C32^2+INDEX(LINEST(eff,pxA^{1;2;3}),1,3)*C32+INDEX(LINEST(eff,pxA^{1;2;3}),1,4),"") ->  | F32: 0 | I32: =IF(H32<>"",INDEX(LINEST(eff,_px6^{1;2;3}),1,1)*F32^3+INDEX(LINEST(eff,_px6^{1;2;3}),1,2)*F32^2+INDEX(LINEST(eff,_px6^{1;2;3}),1,3)*F32+INDEX(LINEST(eff,_px6^{1;2;3}),1,4),"") ->  | AQ32: 45 HZ | AR32: 45 | AS32: 0 | AT32: 0.75 | AU32: 0.5625 | AV32: 0.421875 | AY32: 345 | AZ32: 436.5 | BA32: 465.75 | BB32: 525 | BC32: 585.75 | BD32: 622.5 | BE32: 660 | BF32: 708.75 | BJ32: 207 | BK32: 196.875 | BL32: 191.25 | BM32: 180 | BN32: 157.5 | BO32: 144 | BP32: 130.5 | BQ32: 112.5
AQ33: 40 HZ | AR33: 40 | AS33: 0 | AT33: 0.6666666667 | AU33: 0.4444444444 | AV33: 0.2962962963 | AY33: 306.6666667 | AZ33: 388 | BA33: 414 | BB33: 466.6666667 | BC33: 520.6666667 | BD33: 553.3333333 | BE33: 586.6666667 | BF33: 630 | BJ33: 163.5555556 | BK33: 155.5555556 | BL33: 151.1111111 | BM33: 142.2222222 | BN33: 124.4444444 | BO33: 113.7777778 | BP33: 103.1111111 | BQ33: 88.88888889
B34: Operating hours and horsepower without VFD | F34: Operating hours and horsepower with alternate solution | AQ34: 35 HZ | AR34: 35 | AS34: 0 | AT34: 0.5833333333 | AU34: 0.3402777778 | AV34: 0.1984953704 | AY34: 268.3333333 | AZ34: 339.5 | BA34: 362.25 | BB34: 408.3333333 | BC34: 455.5833333 | BD34: 484.1666667 | BE34: 513.3333333 | BF34: 551.25 | BJ34: 125.2222222 | BK34: 119.0972222 | BL34: 115.6944444 | BM34: 108.8888889 | BN34: 95.27777778 | BO34: 87.11111111 | BP34: 78.94444444 | BQ34: 68.05555556
B35: Point | C35: %Hrs | D35: Input-HP | E35: KWh | F35: =H24 -> VFD freq (Hz) | G35: Input-HP | H35: %Hrs | I35: KWh | AQ35: 30 HZ | AR35: 30 | AS35: 0 | AT35: 0.5 | AU35: 0.25 | AV35: 0.125 | AY35: 230 | AZ35: =IF(AND(AZ34<>"",$AR35<>""),AZ$21*$AT35,"") -> 291 | BA35: 310.5 | BB35: 350 | BC35: 390.5 | BD35: 415 | BE35: 440 | BF35: 472.5 | BJ35: 92 | BK35: 87.5 | BL35: 85 | BM35: 80 | BN35: 70 | BO35: 64 | BP35: 58 | BQ35: 50
B36: 1 | D36: =IF(OR(C27="",D27="",$B$19=0,E27=0,E27="",$B$19=""),"",(C27*D27)/3960/(E27/100)/($B$19/100)) ->  | E36: =IF(OR(D36="",C36=""),"",C36*$E$11*D36*0.746) ->  | F36: =IF(H27<>"",H27,"") ->  | G36: =IF(OR(F27="",G27="",$B$19=0),"",IF($C$19=0,(F27*G27)/(3960*(I27*$D$19*$B$19)/100^3),IF(AND($D$19<>0,$C$19<>0),(F27*G27)/(3960*(I27*$D$19*$C$19)/100^3),IF(AND($C$19<>0,$D$19=0),(F27*G27)/(3960*(I27*$C$19)/100^2),"")))) ->  | H36: =IF(AND(C36<>"",C36<>""),C36,"") ->  | I36: =IF(OR(G36="",H36=""),"",H36*$E$11*G36*0.746) ->  | AY36: e1 | AZ36: e2 | BA36: e3 | BB36: e4 | BC36: e5 | BD36: e6 | BE36: e7 | BF36: e8 | BG36: e9 | BH36: e10 | BI36: e11
B37: 2 | G37: =IF(OR(F28="",G28="",$B$19=0),"",IF($C$19=0,(F28*G28)/(3960*(I28*$D$19*$B$19)/100^3),IF(AND($D$19<>0,$C$19<>0),(F28*G28)/(3960*(I28*$D$19*$C$19)/100^3),IF(AND($C$19<>0,$D$19=0),(F28*G28)/(3960*(I28*$C$19)/100^2),"")))) ->  | AX37: =TEXT(AR21,0)&" eff" -> 60 eff | AY37: =J11 -> 74 | AZ37: =J12 -> 78 | BA37: =J13 -> 79 | BB37: =J14 -> 80.5 | BC37: =J15 -> 80 | BD37: =J16 -> 78 | BE37: =J17 -> 75 | BF37: =J18 -> 69 | BG37: =J19 -> 0 | BH37: =J20 -> 0 | BI37: =J21 -> 0
B38: 3 | AQ38: =J12&"% "&"eff" -> 78% eff
B39: 4 | AQ39: 79% eff
B40: 5 | AQ40: 80.5% eff | AX40: =G27-AY40 -> 0 | AY40: =INDEX(LINEST(_py1,_px1^{1;2;3}),1,1)*F27^3+INDEX(LINEST(_py1,_px1^{1;2;3}),1,2)*F27^2+INDEX(LINEST(_py1,_px1^{1;2;3}),1,3)*F27+INDEX(LINEST(_py1,_px1^{1;2;3}),1,4) -> 0
B41: 6 | AQ41: 80% eff | AX41: 0 | AY41: =INDEX(LINEST(_py2,_px2^{1;2;3}),1,1)*F28^3+INDEX(LINEST(_py2,_px2^{1;2;3}),1,2)*F28^2+INDEX(LINEST(_py2,_px2^{1;2;3}),1,3)*F28+INDEX(LINEST(_py2,_px2^{1;2;3}),1,4) -> 0
C42: =IF(AND(SUM(C36:C41)< 1,SUM(C36:C41)<>0),"This should equal 100%",IF(SUM(C36:C41)>1,"This should equal 100%","")) ->  | H42: =IF(AND(SUM(H36:H41)< 1,SUM(H36:H41)<>0),"This should equal 100%",IF(SUM(H36:H41)>1,"This should equal 100%","")) ->  | AQ42: 78% eff | AX42: 0 | AY42: =INDEX(LINEST(_py3,_px3^{1;2;3}),1,1)*F29^3+INDEX(LINEST(_py3,_px3^{1;2;3}),1,2)*F29^2+INDEX(LINEST(_py3,_px3^{1;2;3}),1,3)*F29+INDEX(LINEST(_py3,_px3^{1;2;3}),1,4) -> 0
AQ43: 75% eff | AX43: 0 | AY43: =INDEX(LINEST(_py4,_px4^{1;2;3}),1,1)*F30^3+INDEX(LINEST(_py4,_px4^{1;2;3}),1,2)*F30^2+INDEX(LINEST(_py4,_px4^{1;2;3}),1,3)*F30+INDEX(LINEST(_py4,_px4^{1;2;3}),1,4) -> 0
B44: With out Alternative | D44: =IF(AND($C$19<>0,$D$19<>0),"With VFD and new motor",IF(AND($C$19<>0,$D$19=0),"With new motor",IF(AND($C$19=0,$D$19<>0),"With VFD","With VFD"))) -> With VFD | F44: Power savings | G44: Payback period (yrs) | AQ44: 69% eff | AX44: 0 | AY44: =INDEX(LINEST(_py5,_px5^{1;2;3}),1,1)*F31^3+INDEX(LINEST(_py5,_px5^{1;2;3}),1,2)*F31^2+INDEX(LINEST(_py5,_px5^{1;2;3}),1,3)*F31+INDEX(LINEST(_py5,_px5^{1;2;3}),1,4) -> 0
B45: Annual Power use (KWH) | C45: Cost/season ($) | D45: Annual Power use (KWH) | E45: Cost/season ($) | AQ45: % eff | AX45: 0 | AY45: =INDEX(LINEST(_py6,_px6^{1;2;3}),1,1)*F32^3+INDEX(LINEST(_py6,_px6^{1;2;3}),1,2)*F32^2+INDEX(LINEST(_py6,_px6^{1;2;3}),1,3)*F32+INDEX(LINEST(_py6,_px6^{1;2;3}),1,4) -> 0
F46: ($/yr) | G46: (yrs) | AQ46: % eff
B47: =SUM(E36:E41) -> 0 | C47: =IF(AND(B47<>0,B47<>"",$E$19<>""),B47*$E$19,"") ->  | D47: =SUM(I36:I41) -> 0 | E47: =IF(AND(D47<>0,D47<>"",$E$19<>""),D47*$E$19,"") ->  | F47: =IF(C47<>"",IF(C47-E47>0,C47-E47,0),"") ->  | G47: =IF(AND(F47<>"",F47>0),$F$19/F47,"") ->  | AQ47: % eff | AX47: 58
BU58: =IF(AY58<>"",11-COUNTBLANK(AY58:BI58),"") -> 
BT59: =IF(AND(BT$21<>"",$AR59<>""),BT$21*$AU59,"") -> 
BT124: =IF(AND(BT$21<>"",$AR124<>""),BT$21*$AU124,"") -> 
BT188: =IF(AND(BT$21<>"",$AR188<>""),BT$21*$AU188,"") -> 
BT252: =IF(AND(BT$21<>"",$AR252<>""),BT$21*$AU252,"") -> 
BT316: =IF(AND(BT$21<>"",$AR316<>""),BT$21*$AU316,"") -> 
BT380: =IF(AND(BT$21<>"",$AR380<>""),BT$21*$AU380,"") -> 

Sheet Revision history
A1: Revision history
A2: 2009-11-20 | B2: converted to office 2007
A3: 2010-03-09 | B3: updated graphs
A4: 2010-11-08 | B4: Cleaned up graph appearance. Added better instruction notes for entering curves so that the curve fitting algorithm work better
A5: 2011-02-24 | B5: fixed equation in E41
A6: 2013-09-30 | B6: Added option of replacing old motor with new high effieciency motor. You can add a VFD, a VFD and new motor or just a new motor. Re arranged the layout
